Cogmind - Beta 13 @@@ ROGUE MODE // 2024.04.07 @ 23:21:30 Player: Olafz Result: Destroyed by G-47 Trooper with Particle Gun Performance ------------- Evolutions (2) 1000 Regions Visited (3) 600 Robots Destroyed (30) 150 Value Destroyed (624) 624 Prototype IDs (0) 0 Alien Tech Used (0) 0 Bonus (0) 0 TOTAL SCORE: 2374 Bonus ------- None Cogmind --------- Core Integrity 0/550 Matter 258/300 Energy 30/100 System Corruption 0% Temperature Cool (9) Movement Core (50) Location -8/Materials Parts ------- > --- POWER (1) -------- (None) > --- PROPULSION (2) --- (None) > --- UTILITY (6) ------ Advanced Weight Redist. System Signal Interpreter Improved Signal Interpreter Advanced Targeting Computer > --- WEAPON (2) ------- (None) > --- INVENTORY (5) ---- Light Ion Engine Light Treads Light Assault Rifle Datajack Katana Peak State ------------ > --- POWER ------------ Light Nuclear Core > --- PROPULSION ------- Light Treads Light Treads > --- UTILITY ---------- Advanced Weight Redist. System Signal Interpreter Improved Signal Interpreter Advanced Targeting Computer > --- WEAPON ----------- Light Assault Rifle Heavy Assault Rifle > --- INVENTORY -------- Light Ion Engine Light Treads Light Assault Rifle Datajack Katana [Rating: 18] Favorites ----------- Power Light Ion Engine Engine Light Ion Engine Power Core Light Nuclear Core Propulsion Light Treads Treads Light Treads Leg Aluminum Leg Utility Small Storage Unit Device Advanced Weight Redist. System Storage Small Storage Unit Processor Signal Interpreter Weapon Light Assault Rifle Ballistic Gun Light Assault Rifle Launcher Grenade Launcher Build | -11 -10 -9 -8 ------- Run | Yrd Mat Mat Mat Slots Evolved 4 | . . 2 2 Power . | . . . . Propulsion . | . . . . Utility 4 | . . 2 2 Weapon . | . . . . Parts Attached 32 | 6 5 1 20 Power 11 | 2 2 . 7 Engine 6 | 2 2 . 2 Core 5 | . . . 5 Reactor . | . . . . Propulsion 8 | 2 . . 6 Treads 5 | 2 . . 3 Leg 3 | . . . 3 Wheel . | . . . . Hover . | . . . . Flight . | . . . . Utility 5 | 1 1 . 3 Device 1 | . . . 1 Storage 1 | 1 . . . Processor 3 | . 1 . 2 Hackware . | . . . . Protection . | . . . . Artifact . | . . . . Weapon 8 | 1 2 1 4 Energy Gun . | . . . . Energy Cannon . | . . . . Ballistic Gun 6 | 1 1 1 3 Ballistic Cannon . | . . . . Launcher 2 | . 1 . 1 Special Weapon . | . . . . Impact Weapon . | . . . . Slashing Weapon . | . . . . Piercing Weapon . | . . . . Special Melee Weapon . | . . . . Unidentified Prototypes . | . . . . Parts Lost 12 | . . 1 11 Power 3 | . . . 3 Propulsion 3 | . . . 3 Utility 1 | . . . 1 Weapon 5 | . . 1 4 Highest Loss Streak 6 | . . 1 6 To Critical Strikes . | . . . . Average Slot Usage (%) 74 | . 83 76 66 Engine 8 | . 14 11 2 Core 2 | . . . 5 Treads 20 | . 28 22 14 Storage 9 | . 14 11 4 Processor 12 | . 2 11 20 Ballistic Gun 19 | . 23 21 15 Naked Turns . | . . . . Heaviest Build 15 | 12 15 11 14 Greatest Support 49 | 40 40 40 49 Greatest Overweight (x) 4 | . . . 4 Average Overweight (x) . | . . . . Largest Inventory Capacity 8 | 8 8 8 8 Average Capacity 7 | 6 8 8 6 Most Carried 8 | 1 6 8 8 Average Carried 5 | . 3 6 6 Final Capacity 8 | 8 8 8 5 Final Carried 8 | 1 6 8 5 Class Distribution -------------------- 62% | Mutant 37% | Scavenger-Mutant Dominant Class ---------------- Mutant | -10/Materials Mutant | -9/Materials Scavenger-Mutant | -8/Materials Resources | -11 -10 -9 -8 ----------- Run | Yrd Mat Mat Mat Matter Collected 779 | 105 47 291 336 Remotely . | . . . . Salvage Created 850 | . 148 323 379 Parts 54 | . 10 19 25 Haulers Intercepted . | . . . . Recyclers Shooed 2 | . . 2 . Parts Field Recycled . | . . . . Retrieved Matter . | . . . . Parts Self-Destructed . | . . . . Prevented . | . . . . Kills | -11 -10 -9 -8 ------- Run | Yrd Mat Mat Mat Combat Hostiles Destroyed 25 | . 5 8 12 Guns 24 | . 5 8 11 AOE 1 | . . . 1 Classes Destroyed 7 | . 4 1 2 Recycler 2 | . . 2 . Operator 1 | . 1 . . Watcher 2 | . 1 . 1 Swarmer 15 | . 3 6 6 Grunt 8 | . 2 2 4 Brawler 1 | . . . 1 Sentry 1 | . . . 1 Best Kill Streak 6 | . 2 4 6 Combat Bots Only 3 | . 2 3 3 Max Kills in Single Turn 2 | . 1 2 1 Gunslinging 1 | . . 1 . Exploded 1 | . . . 1 Melee . | . . . . Uniques/NPCs Destroyed . | . . . . Combat | -11 -10 -9 -8 -------- Run | Yrd Mat Mat Mat Hostile Shots Fired 226 | . 29 49 148 Missed 64 | . 8 11 45 Damage Taken 2141 | . 275 353 1513 Core 695 | . 68 74 553 Absorbed by Shields . | . . . . Core Remaining (%) 84 | 100 72 81 . Volleys Fired 94 | . 32 22 40 Largest 2 | . 2 2 2 Hottest 50 | . 50 40 43 Shots Fired 173 | . 59 44 70 Gun 169 | . 57 44 68 Cannon . | . . . . Launcher 4 | . 2 . 2 Special . | . . . . Kinetic 169 | . 57 44 68 Thermal . | . . . . Explosive 4 | . 2 . 2 Electromagnetic . | . . . . Robot Hit Streak 13 | . 7 4 13 Robot Miss Streak 7 | . 7 4 3 Penetration Max . | . . . . Secondary Targets 5 | . 2 2 1 Max Gunslinging Chain 1 | . 1 1 1 Shots Hit Robots 103 | . 31 21 51 Core Hits 57 | . 14 15 28 Critical Kills 1 | . 1 . . Critical Parts Destroyed 1 | . 1 . . Critical Strikes 2 | . 2 . . Destroy 2 | . 2 . . Melee Attacks . | . . . . Impact . | . . . . Slashing . | . . . . Piercing . | . . . . Sneak Attacks . | . . . . Combat Hostiles . | . . . . Follow-up Attacks . | . . . . Damage Inflicted 1361 | . 362 248 751 Guns 1061 | . 293 244 524 Cannons . | . . . . Explosions 296 | . 69 . 227 Melee . | . . . . Ramming 4 | . . 4 . Kinetic 1061 | . 293 244 524 Thermal . | . . . . Explosive 296 | . 69 . 227 Electromagnetic . | . . . . Impact . | . . . . Slashing . | . . . . Piercing . | . . . . Highest Corruption . | . . . . Average Corruption . | . . . . Corruption Purged . | . . . . Corruption Blocked . | . . . . Overload Shots . | . . . . Overflow Damage . | . . . . Projectiles . | . . . . Explosions . | . . . . Melee . | . . . . Knockbacks . | . . . . Impact . | . . . . Kinetic . | . . . . Secondary . | . . . . Self-Inflicted Damage 129 | . 53 . 76 Shots 4 | . 2 . 2 Rammed 3 | . . 3 . Targets Rammed 3 | . . 3 . Kicked . | . . . . Crushed . | . . . . Highest Temperature 9 | . 6 6 9 Average Temperature 4 | . 6 3 4 Received Heat Transfer 666 | . 42 111 513 Siege Activations . | . . . . Robots Corrupted . | . . . . Combat Hostiles . | . . . . Parts Fried . | . . . . Impact Corruptions . | . . . . Robots Melted . | . . . . Combat Hostiles . | . . . . Parts Melted . | . . . . Heat Transferred . | . . . . Parts Sabotaged . | . . . . Parts Stolen . | . . . . Parts Stripped . | . . . . Power Chain Reactions . | . . . . Alert | -11 -10 -9 -8 ------- Run | Yrd Mat Mat Mat Peak Influence 345 | . 158 202 345 Initial 80 | . . 66 80 Average 131 | . 71 85 215 Maximum Alert Level 1 | . . 1 1 Low Security (%) 71 | 100 100 86 40 Level 1 28 | . . 13 59 Level 2 . | . . . . Level 3 . | . . . . Level 4 . | . . . . Level 5 . | . . . . High Security . | . . . . Max Security . | . . . . Squads Dispatched 6 | . 2 1 3 Investigation . | . . . . Extermination . | . . . . Reinforcement 6 | . 2 1 3 Assault . | . . . . Garrison . | . . . . Intercept . | . . . . Searches Triggered . | . . . . Construction Impeded . | . . . . Haulers Reinforced . | . . . . Active Scanning Responses . | . . . . Cargo Convoy Interrupts . | . . . . Stealth | -11 -10 -9 -8 --------- Run | Yrd Mat Mat Mat Distress Signals 1 | . . . 1 Communications Jammed . | . . . . Distress Signals . | . . . . Times Spotted 52 | . 12 12 28 Peak Tracking Total 9 | . 4 4 9 Tactical Retreats 2 | . . . 2 Traps | -11 -10 -9 -8 ------- Run | Yrd Mat Mat Mat Traps Triggered 1 | . 1 . . Indirectly . | . . . . Trap Hack Attempts . | . . . . Triggered . | . . . . Disarmed . | . . . . Reprogrammed . | . . . . Reused . | . . . . Traps Extracted . | . . . . Installed . | . . . . Triggered . | . . . . Machines | -11 -10 -9 -8 ---------- Run | Yrd Mat Mat Mat Machines Disabled . | . . . . Max in Single Turn . | . . . . Machines Repaired . | . . . . Machines Dismantled . | . . . . Machines Sabotaged . | . . . . Overloaded Fab Kills . | . . . . Hacking | -11 -10 -9 -8 --------- Run | Yrd Mat Mat Mat Machines Accessed 1 | . . 1 . Terminals 1 | . . 1 . Fabricators . | . . . . Repair Stations . | . . . . Recycling Units . | . . . . Scanalyzers . | . . . . Garrison Access . | . . . . Total Hacks 6 | . . 6 . Successful 4 | . . 4 . Failed 2 | . . 2 . Catastrophic . | . . . . Database Lockouts . | . . . . Manual 2 | . . 2 . Terminals 6 | . . 6 . Fabricators . | . . . . Repair Stations . | . . . . Recycling Units . | . . . . Scanalyzers . | . . . . Garrison Access . | . . . . Terminal Hacks 4 | . . 4 . Unreport Threat 2 | . . 2 . Dispatch Records 1 | . . 1 . Hauler Manifests 1 | . . 1 . Fabricator Hacks . | . . . . Repair Station Hacks . | . . . . Recycling Unit Hacks . | . . . . Scanalyzer . | . . . . Garrison Access Hacks . | . . . . Unauthorized Hacks . | . . . . Terminals . | . . . . Fabricators . | . . . . Repair Stations . | . . . . Recycling Units . | . . . . Scanalyzers . | . . . . Garrison Access . | . . . . Data Cores Recovered . | . . . . Used . | . . . . Hacking Detections 1 | . . 1 . Full Trace Events . | . . . . Feedback Events . | . . . . Feedback Blocked . | . . . . Robot Schematics Acquired . | . . . . Robots Built . | . . . . Authchips . | . . . . Time . | . . . . Total Robot Build Rating . | . . . . Part Schematics Acquired . | . . . . Parts Built . | . . . . Authchips . | . . . . Time . | . . . . Total Part Build Rating . | . . . . Parts Repaired . | . . . . Time . | . . . . Parts Recycled . | . . . . Recycled Matter . | . . . . Retrieved Matter . | . . . . Retrieved Components . | . . . . Parts Scanalyzed . | . . . . Part Schematics Acquired . | . . . . Parts Damaged . | . . . . Bothacking | -11 -10 -9 -8 ------------ Run | Yrd Mat Mat Mat Used RIF Installer . | . . . . Robots Hacked . | . . . . Non-combat . | . . . . Combat . | . . . . Robot Hacks Applied . | . . . . Relay Couplers Released . | . . . . Fabnet Peak Effective % . | . . . . Robots Rewired . | . . . . Allies Hacked . | . . . . Hacks Repelled . | . . . . Allies | -11 -10 -9 -8 -------- Run | Yrd Mat Mat Mat Total Allies . | . . . . Largest Group . | . . . . Highest-Rated Group . | . . . . Highest-Rated Ally . | . . . . Total Orders . | . . . . Ally Attacks . | . . . . Total Damage . | . . . . Kills . | . . . . Allies Corrupted . | . . . . Allies Melted . | . . . . Intel | -11 -10 -9 -8 ------- Run | Yrd Mat Mat Mat Robot Analysis Total . | . . . . Derelict Logs Recovered . | . . . . Drone Launches . | . . . . Drone Recoveries . | . . . . Exploration | -11 -10 -9 -8 ------------- Run | Yrd Mat Mat Mat Turns Passed 1154 | 63 346 260 485 Spaces Moved 543 | 36 156 120 231 Core 30 | 2 . . 28 Treads 503 | 34 156 120 193 Legs 10 | . . . 10 Wheels . | . . . . Hover . | . . . . Flight . | . . . . Fastest Speed 50 | 50 160 160 50 Average Speed 155 | 153 160 160 151 Slowest Speed 250 | 160 160 160 250 Overloaded Moves . | . . . . Propulsion Burnouts . | . . . . Robots Hopped . | . . . . Cave-ins Triggered . | . . . . Exploration Rate (%) 22 | 4 41 18 27 Regions Visited 3 Branch Regions . Pre-discovered Areas . | . . . . Known Exits Taken 2 | . 1 1 . Unknown Exits Taken 1 | 1 . . . Scrap Searched . | . . . . Spaces Dug . | . . . . Terrain Destroyed 27 | . 11 . 16 Melee . | . . . . Projectile . | . . . . AOE 27 | . 11 . 16 Terrain Rammed . | . . . . Walls Destroyed . | . . . . Machines Disabled . | . . . . Actions | -11 -10 -9 -8 --------- Run | Yrd Mat Mat Mat Total 688 | 41 197 146 304 Wait 2 | . 2 . . Move 540 | 35 155 119 231 Hop . | . . . . Pick Up 5 | . 2 1 2 Fast Attach 17 | 5 3 . 9 Attach 4 | . . . 4 Detach 2 | . 1 . 1 Swap 11 | 1 2 1 7 Drop 10 | . . . 10 Fire 94 | . 32 22 40 Melee . | . . . . Ram . | . . . . Kick . | . . . . Crush 3 | . . 3 . Escape Stasis . | . . . . Rewire . | . . . . Trap . | . . . . Miscellaneous . | . . . . Route ------- -11/Scrapyard -10/Materials -9/Materials -8/Materials (discovered 1 exit: *Fac) History --------- Turn | Location | Event 40 | -11/Scrapyard | Discovered new exit (range 15) 64 | -11/Scrapyard | Entered Materials 318 | -10/Materials | Build established: Mutant 406 | -10/Materials | Discovered new exit (range 3) 409 | -10/Materials | Identified exit to Materials 410 | -10/Materials | Entered another Materials area 410 | -9/Materials | Evolved 2 slots: Utility x2 663 | -9/Materials | Discovered new exit (range 5) 668 | -9/Materials | Identified exit to Materials 670 | -9/Materials | Entered another Materials area 670 | -8/Materials | Evolved 2 slots: Utility x2 745 | -8/Materials | Lost 6 parts (2p2n2w) 780 | -8/Materials | Core integrity fell below 50% 1012 | -8/Materials | Build established: Scavenger-Mutant 1021 | -8/Materials | Discovered new exit (range 10) 1052 | -8/Materials | Identified exit to Factory 1152 | -8/Materials | Core integrity fell below 20% 1155 | -8/Materials | Destroyed by G-47 Trooper with Particle Gun Last Messages --------------- 01098_ K-01 Serf collects debris. 01102_ ALERT: Hostiles spotted, dispatching reinforcements to Terminal M012. 01105_ K-01 Serf collects debris. 01112_ ALERT: Hostiles spotted, dispatching reinforcements to Terminal M004. 01121_ Critical hit (Burn: +37). 01124_ G-47 Trooper destroyed. 01127_ K-01 Serf cleans the Matter Pump. 01130_ Lgt. Assault Rifle destroyed. 01130_ K-01 Serf cleans the Matter Pump. 01137_ Lgt. Nuclear Core destroyed. 01138_ K-01 Serf cleans the Matter Pump. 01139_ Hvy. Assault Rifle destroyed. 01141_ K-01 Serf cleans the Matter Pump. 01141_ Acquired 50 matter. 01144_ Acquired Lgt. Nuclear Core. 01145_ Lgt. Treads destroyed. 01146_ Dropped Lgt. Nuclear Core. 01147_ Dropped Lgt. Treads. Map ----- +----------------------------------------------------+ | ???????????????????????????????????????????? | | ???????????????????????????????????????????? | | ???????????????????????????????????????????? | | ??????????????????????????##########???????? | | ??????????????????????????# "" #####???? | | ??????????????????????????# ""S # #???? | | ??????????????????????????# "" # < #???? | | ??????????????????????????#^ # #???? | | ??????????????????????????# + #???? | | ??????????????????????????# """ # #???? | | ??????????????????????????# """ # #???? | | ??????????????????????????# """ # #???? | | ??????????????????????????# # #???? | | ??????????????????????????########## #???? | | ????????????????????????????# | # #???? | | ????????????????????????????# + #???? | | ???#????????????????????????# """ # #???? | | ???# ???????????????????????# """ # #???? | | ???+ ??????????????????????# """ # #???? | | ???# ?????????????????????# # #???? | | ???# ????????????????????##+##### #???? | | ??## ?????????????????????# #???# #???? | | ### ###################### ##### #???? | | g k #???? | | =* ^ g k % % #???? | | """ """ g t @ #???? | | ### """ !""" ###########+#########???? | | ???# """ """ #?????# *#???????? | | ???# #?????# #???????? | | ???# #?????# """ """ #???????? | | ???# """ ^""" #?????# """ """ #???????? | | ???# """ """ #?????# """ """ #???????? | | ???+ """ """ #?????# """ """ #???????? | | ???# #?????# """ """ #???????? | | ???# #?????# #???????? | | ???# """ """ #?????####+#############? | | ???? """ """ ""#????????# #?# | #? | | ???? """ """ T"#????????# #?# #? | | ???? ???? ? ""########## ### ] #? | | ????????? ? # #? | | ???????? ? %+ #? | | ?????????# ##?# # #? | | ?????????? ????################ # #? | | ?????????? ???????????????????# # [ #? | | ????????????????????????????### ###+#######? | | ????????????????????????????# ?#%#??????? | | ????????????????????????????# ?# #??????? | | ????????????????????????????+ T # #??????? | | ????????????????????????????# # #??????? | | ????????????????????????????# # ####???? | +----------------------------------------------------+ Best States ------------- Heat Dissipation 31 Energy Generation 14 Energy Capacity 250 Matter Stores 300 Matter Capacity 300 Sight Range 16 Terrain Scan Density 10 Additional Mass Support 9 Evasion (%) 55 Targeting Accuracy 8 Recoil Reduction 2 Item Schematics ----------------- None Robot Schematics ------------------ None Fabricated ------------ Nothing Alien Tech Used ----------------- None Achievements -------------- None Challenges ------------ None Game ------ Seed BackupDataSource Manual? 0 Play Time 00:10:08 Cumulative 31.6 hours Start 2024.04.07 @ 23:12:29 End 2024.04.07 @ 23:21:30 Sessions 1 Manual Loads 0 Difficulty Rogue Special Mode None Game No. 84 Rogue 82 Adventurer 2 Explorer 0 Win Type - Total 0 Types 0/0/0/0/0/0/0/0/0 Lore% 24 Gallery% 32 Achievement% 24 Wizard Run 0 Options --------- Layout 0 ASCII 0 Keyboard 1 Movement Numpad Keybinds 0 Fullscreen 2 Font 18/SmallcapsGlow Map View 76x50 Zoom Use 0% Tactical HUD 1 Map Filters NONE Filters NONE Steam 1 RUN: 61d10172-03eb-411d-bbdc-d8f5a3167482